lending/lending_fUSD_20240207
["ID","MTS","AMOUNT","RATE_DAILY","PERIOD"]
[313393493,1707276633702,-20399.04626513,0.000337,2]
[313393494,1707276633720,-20813.46833487,0.000337,2]
[313393495,1707276633730,-1040.2313,0.000337,2]
[313393496,1707276633739,-800.0,0.00033728,2]
[313393497,1707276633749,-728.48,0.00033732,2]
[313393498,1707276633760,-152.0207,0.00033748,3]
[313393499,1707276633769,-5641.07886171,0.00033789,2]
[313393500,1707276633778,-1972.26398531,0.00033789,2]
[313393501,1707276633787,-200.0,0.00033789,2]
[313393502,1707276633796,-190.91405629,0.00033789,2]
[313393503,1707276633808,-4000.0,0.00033789,2]
[313393504,1707276633817,-731.35,0.00033789,2]
[313393505,1707276633826,-714.34,0.00033789,2]
[313393506,1707276633834,-219.55,0.0003379,10]
[313393507,1707276633843,-418.66,0.0003379,10]
[313393508,1707276633852,-348.88,0.0003379,10]
[313393509,1707276633862,-290.73,0.0003379,10]
[313393510,1707276633870,-479.37356705,0.00033797,6]
[313393511,1707276633880,-227.64125047,0.00033799,4]
[313393512,1707276633896,-642.7807,0.000338,2]
[313393513,1707276633909,-44170.85108562,0.000338,2]
[313393514,1707276633923,-492.18609625,0.000338,2]
[313393524,1707276637643,-4060.84107574,0.000338,2]
[313393525,1707276637655,-51276.12174239,0.000338,2]
[313393526,1707276637664,-33263.61572961,0.000338,2]
[313393527,1707276637677,-211736.38427039,0.000338,2]
[313393528,1707276637686,-1047.52615169,0.00033897,2]
[313393529,1707276637695,-155.0,0.00033897,4]
[313393530,1707276637704,-54190.95633661,0.00033899,2]
[313393531,1707276637713,-210.0,0.000339,2]
[313393532,1707276637723,-1000.0,0.00033997,2]
[313393533,1707276637732,-152.61858208,0.00033999,2]
[313393534,1707276637746,-898.24378604,0.00033999,2]
[313393535,1707276637755,-722.45,0.00034,2]
[313393536,1707276637765,-87822.47065518,0.00034,7]
[313393537,1707276637777,-375.00117582,0.00034,7]
[313393538,1707276637788,-2086.03578028,0.00034,7]
[313393539,1707276637810,-12760.26742825,0.00034,7]
[313393540,1707276637825,-153668.0605676,0.00034,7]
[313393541,1707276637836,-769.2482804,0.00034111,2]
[313393542,1707276637847,-150.0,0.0003465,2]
[313393543,1707276637856,-150.0,0.00034654,2]
[313393544,1707276637866,-2000.0,0.000347,4]
[313393545,1707276637875,-10044.81092461,0.00034737,2]
[313393546,1707276638026,-150.0,0.0003474,2]
[313393547,1707276638035,-150.0,0.00034765,2]
[313393549,1707276638049,-567.37074429,0.00034776,2]
[313393551,1707276638058,-150.0,0.00034787,2]
[313393552,1707276638067,-366.37605833,0.00034799,30]
[313393553,1707276638077,-1000.0,0.000348,5]
[313393554,1707276638086,-165.56017877,0.000348,2]
[313393555,1707276638095,-157.12917361,0.000348,2]
[313393556,1707276638105,-5000.0,0.000348,3]
[313393557,1707276638114,-469.33527598,0.000348,2]
[313393558,1707276638123,-968.42478432,0.000348,24]
[313393559,1707276638132,-497.25786758,0.000348,2]
[313393560,1707276638141,-306.911094,0.000348,2]
[313393561,1707276638151,-150.0,0.00034862,2]
[313393562,1707276638160,-150.0,0.00034866,2]
[313393563,1707276638169,-285.96,0.00034867,2]
[313393564,1707276638178,-1715.1511117,0.00034876,2]
[313393565,1707276638187,-1551.3891254,0.00034876,2]
[313393566,1707276638197,-1387.6271391,0.00034876,2]
[313393567,1707276638208,-1223.8651529,0.00034876,2]
[313393568,1707276638217,-1060.1031666,0.00034876,2]
[313393569,1707276638226,-1742.2953132,0.00034876,2]
[313393570,1707276638235,-1574.7153087,0.00034876,2]
[313393571,1707276638244,-1407.1353043,0.00034876,2]
[313393572,1707276638253,-1239.5552998,0.00034876,2]
[313393573,1707276638262,-1071.9752954,0.00034876,2]
[313393574,1707276638271,-433.7218976,0.00034876,2]
[313393575,1707276638280,-391.3209037,0.00034876,2]
[313393576,1707276638289,-348.9199099,0.00034876,2]
[313393577,1707276638298,-306.5189161,0.00034876,2]
[313393578,1707276638307,-264.1179223,0.00034876,2]
[313393579,1707276638317,-7398.99586657,0.00034896,5]
[313393580,1707276638326,-200.0,0.00034897,2]
[313393581,1707276638334,-336.95912821,0.00034899,30]
[313393582,1707276638343,-150.0,0.00034899,2]
[313393583,1707276638353,-150.0,0.00034899,2]
[313393584,1707276638362,-578.24517735,0.00034899,15]
[313393585,1707276638371,-355.33813752,0.00034899,15]
[313393586,1707276638385,-182.87909627,0.00034899,15]
[313393587,1707276638394,-221.70689488,0.00034899,15]
[313393588,1707276638403,-167.6580372,0.00034899,15]
[313393589,1707276638413,-394.17544774,0.00034899,15]
[313393590,1707276638422,-370.0,0.00034899,5]
[313393591,1707276638431,-202651.36040381,0.000349,3]
[313393592,1707276638545,-14884.05202119,0.000349,3]
[313393593,1707276638557,-17620.22836132,0.000349,3]
[313393594,1707276638571,-47133.44507934,0.000349,3]
[313393595,1707276638583,-64314.95530428,0.000349,3]
[313393596,1707276638597,-20034.56198661,0.000349,3]
[313393597,1707276638609,-656.55603512,0.000349,3]
[313393598,1707276638622,-973.7821564,0.000349,3]
[313393599,1707276638634,-1558.81135487,0.000349,3]
[313393627,1707276640294,-10341.66745839,0.000349,3]
[313393628,1707276640342,-70195.16997241,0.000349,3]
[313393629,1707276640398,-897.0,0.000349,3]
[313393630,1707276641252,-90942.99823362,0.000349,3]
[313393652,1707276642714,-242.28,0.0003489,10]
[313393653,1707276642724,-207747.15264933,0.000349,3]
[313393654,1707276642734,-2000000.0,0.000349,2]
[313393655,1707276642744,-1000.0,0.000349,2]
[313393656,1707276642753,-609.98533977,0.000349,2]
[313393657,1707276642763,-1878.913098,0.00034909,2]
[313393658,1707276642772,-154.39,0.00034913,2]
[313393659,1707276642782,-516.6568181,0.00034924,2]
[313393660,1707276642795,-476.1228914,0.00034948,2]
[313393661,1707276642806,-1909.8753176,0.00034972,2]
[313393662,1707276642815,-469.9992994,0.00034976,2]
[313393663,1707276642825,-423.3417806,0.00034976,2]
[313393664,1707276642835,-152.3,0.00034995,5]
[313393665,1707276642845,-155.0,0.00034996,4]
[313393666,1707276642855,-1080.02787074,0.00034996,4]
[313393667,1707276642865,-365.07230987,0.00034996,4]
[313393668,1707276642875,-155.0,0.00034996,4]
[313393669,1707276642885,-416.5415,0.00034998,4]
[313393670,1707276642896,-150.0,0.00034999,2]
[313393671,1707276642907,-150.0,0.00034999,2]
[313393672,1707276642918,-150.0,0.00034999,2]
[313393673,1707276642929,-276.99034687,0.00034999,2]
[313393674,1707276642938,-150.0,0.00034999,2]
[313393675,1707276642948,-124555.57142156,0.00035,7]
[313393683,1707276645709,-377.0,0.000349,5]
[313393684,1707276645718,-694.99088532,0.00034999,2]
[313393685,1707276645728,-155.0,0.00034999,2]
[313393686,1707276645737,-628.90165293,0.00035,7]
[313393687,1707276645812,-14834.47399499,0.00035,7]
[313393688,1707276645869,-254403.54388326,0.00035,7]
[313393692,1707277834271,-161.09722205,0.000249,2]
[313393694,1707277834281,-150.0,0.0002497,2]
[313393695,1707277834290,-69.39468352,0.0002497,2]
[313393696,1707277834326,-223.22992777,0.0002497,2]
[313393697,1707277834335,-151.3,0.00024975,2]
[313393698,1707277834355,-150.88,0.00024977,2]
[313393699,1707277834365,-152.51,0.00024982,2]
[313393700,1707277834374,-150.88,0.00024986,2]
[313393701,1707277834384,-150.38,0.00024988,2]
[313393702,1707277834393,-152.82,0.00024993,2]
[313393703,1707277834403,-150.68,0.00024995,2]
[313393704,1707277834412,-1046.11,0.00024995,2]
[313393705,1707277834422,-350.0,0.00025,3]
[313393706,1707277834431,-1113.29,0.00025,2]
[313393707,1707277834440,-483.26,0.00025,2]
[313393708,1707277834450,-150.99,0.00025,2]
[313393709,1707277834460,-2075.0,0.000267,2]
[313393710,1707277834469,-7369.0,0.000267,2]
[313393711,1707277834479,-528.95,0.000267,2]
[313393712,1707277834488,-161.09722205,0.000269,2]
[313393713,1707277834497,-400.0,0.00027,3]
[313393714,1707277834506,-161.09722205,0.000289,2]
[313393715,1707277834516,-450.0,0.00029,3]
[313393716,1707277834525,-277.57,0.0002961,2]
[313393717,1707277834534,-832.14,0.00029612,2]
[313393718,1707277834544,-23880.0,0.00029749,2]
[313393719,1707277834553,-179.18,0.00029798,2]
[313393720,1707277834563,-150.0,0.00030013,2]
[313393721,1707277834573,-2705.0,0.00030683,2]
[313393722,1707277834582,-1022.23515662,0.00030778,2]
[313393723,1707277834591,-1922.67067839,0.00030779,6]
[313393724,1707277834601,-1000.0,0.00030779,7]
[313393725,1707277834610,-1000.0,0.00030779,7]
[313393726,1707277834619,-9200.17648165,0.00030779,6]
[313393727,1707277834628,-1000.0,0.00030779,7]
[313393728,1707277834637,-1000.0,0.00030779,7]
[313393729,1707277834647,-5744.70259279,0.00030779,6]
[313393730,1707277834656,-1000.0,0.00030779,7]
[313393731,1707277834666,-1000.0,0.00030779,7]
[313393733,1707277834676,-1385.45950738,0.00030779,6]
[313393735,1707277834686,-1000.0,0.00030779,7]
[313393736,1707277834695,-1000.0,0.00030779,7]
[313393738,1707277834706,-1000.0,0.00030779,7]
[313393740,1707277834715,-759.171456,0.00030779,6]
[313393741,1707277834726,-1060.73691237,0.00030779,6]
[313393743,1707277834735,-1000.0,0.00030779,7]
[313393745,1707277834745,-1000.0,0.00030779,7]
[313393746,1707277834754,-1000.0,0.00030779,7]
[313393748,1707277834764,-200.99,0.00030825,2]
[313393750,1707277834773,-1500.0,0.00030834,7]
[313393751,1707277834782,-161.09722205,0.000309,2]
[313393753,1707277834793,-500.0,0.00031,3]
[313393755,1707277834802,-2878.811,0.00031169,2]
[313393757,1707277834812,-213.782,0.00031169,2]
[313393759,1707277834821,-1238.876,0.00031169,2]
[313393760,1707277834831,-1133.775,0.00031169,2]
[313393762,1707277834840,-1052.098,0.00031169,2]
[313393764,1707277834853,-432.492,0.00031169,2]
[313393765,1707277834862,-1149.479,0.00031169,2]
[313393766,1707277834871,-323.155,0.00031169,2]
[313393767,1707277834880,-852.454,0.00031169,2]
[313393768,1707277834890,-1151.288,0.00031169,2]
[313393769,1707277834899,-345.464,0.00031169,2]
[313393770,1707277834909,-250.0,0.00031226,2]
[313393771,1707277834920,-800.0,0.00031368,2]
[313393772,1707277834930,-210.0,0.0003147,2]
[313393773,1707277834942,-166.28,0.00031552,2]
[313393774,1707277834952,-286.17,0.00031827,2]
[313393775,1707277834962,-277.57,0.00031873,2]
[313393776,1707277834972,-200.99,0.00032469,2]
[313393777,1707277834982,-200.0,0.00032813,2]
[313393778,1707277834991,-500.0,0.000329,2]
[313393779,1707277835001,-161.09722205,0.000329,2]
[313393780,1707277835011,-550.0,0.00033,3]
[313393781,1707277835020,-83042.93995501,0.0003349,5]
[313393782,1707277835035,-450.0,0.0003349,5]
[313393783,1707277835047,-1003.30335493,0.0003349,5]
[313393784,1707277835064,-433.59794111,0.0003349,5]
[313393785,1707277835076,-2192.13108024,0.0003349,5]
[313393786,1707277835087,-594.5274152,0.0003349,5]
[313393787,1707277835100,-321.16565532,0.0003349,5]
[313393788,1707277835125,-369.37849318,0.0003349,5]
[313393789,1707277835141,-2657.95491868,0.0003349,5]
[313393801,1707277840215,-155.0,0.00030012,2]
[313393802,1707277840225,-2050.05804703,0.0003349,5]
[313393803,1707277840235,-209.31864003,0.00033498,6]
[313393806,1707277840273,-399.93830298,0.00033498,6]
[313393807,1707277840283,-570.36416654,0.000335,2]
[313393808,1707277840295,-3159.10290502,0.000335,2]
[313393809,1707277840308,-12542.3121035,0.000335,2]
[313393810,1707277840331,-1083.24875629,0.000335,2]
[313393811,1707277840344,-474.27476,0.000335,2]
[313393812,1707277840443,-643.243,0.000335,2]
[313393813,1707277840455,-364.13822102,0.000335,2]
[313393814,1707277840502,-59834.05106976,0.000335,2]
[313393815,1707277840514,-2065.26775631,0.000335,2]
[313393816,1707277840613,-550.13251355,0.000335,2]
[313393896,1707277841467,-32893.97749826,0.000335,2]
[313394043,1707277842909,-240310.24296858,0.000335,2]
[313394045,1707277842921,-557.94507886,0.000335,2]
[313394106,1707277845982,-591.49999999,0.000335,2]
[313394109,1707278050581,1229.12071993,0.0002,2]
[313394117,1707279034310,-209.0,0.0002847,2]
[313394120,1707279034319,-155.0,0.0003,2]
[313394123,1707279034339,-257.33,0.00030015,2]
[313394124,1707279034373,-158.33062382,0.00030679,2]
[313394126,1707279034382,-210.80757545,0.00030679,2]
[313394127,1707279034392,-580.44892111,0.00030679,5]
[313394128,1707279034402,-176.67995718,0.00030679,11]
[313394129,1707279034411,-167053.67102344,0.00030778,2]
[313394130,1707279034481,-104481.91226071,0.00030778,2]
[313394131,1707279034493,-64503.77659666,0.00030778,2]
[313394132,1707279034504,-24586.31786577,0.00030778,2]
[313394133,1707279034515,-7924.14223101,0.00030778,2]
[313394134,1707279034537,-314.41380954,0.00030778,2]
[313394135,1707279034594,-129700.11187369,0.00030778,2]
[313394136,1707279034604,-1196.01039166,0.00030779,6]
[313394137,1707279034614,-1000.0,0.00030779,7]
[313394138,1707279034624,-1000.0,0.00030779,7]
[313394139,1707279034632,-1687.18388987,0.00030779,6]
[313394140,1707279034642,-5584.07219726,0.00030779,6]
[313394141,1707279034652,-1852.70755117,0.00030779,6]
[313394142,1707279034662,-1000.0,0.00030779,7]
[313394143,1707279034671,-2851.80208666,0.00030779,6]
[313394144,1707279034680,-245.85656288,0.00030779,5]
[313394145,1707279034689,-1000.0,0.00030779,7]
[313394146,1707279034698,-1398.91926546,0.00030779,6]
[313394147,1707279034707,-815.64897801,0.00030779,6]
[313394149,1707279034717,-187.29061741,0.00030779,5]
[313394151,1707279034726,-645.13191623,0.00030779,6]
[313394153,1707279034735,-1000.0,0.00030779,7]
[313394154,1707279034744,-409.40350122,0.00030779,6]
[313394155,1707279034756,-160.88585138,0.0003099,2]
[313394156,1707279034765,-3738.52844377,0.00031,7]
[313394157,1707279034777,-81085.74916009,0.00031,7]
[313394158,1707279034787,-1458.31,0.00031497,7]
[313394159,1707279034796,-499.99,0.00031497,2]
[313394161,1707279034806,-160.79,0.00031508,2]
[313394163,1707279034815,-250.0,0.00031546,2]
[313394165,1707279034825,-360.0,0.00031588,2]
[313394166,1707279034834,-150.0,0.00031626,2]
[313394167,1707279034843,-693.45,0.00031782,2]
[313394168,1707279034855,-117168.70828134,0.000318,3]
[313394169,1707279034869,-484.10191491,0.000318,3]
[313394170,1707279034881,-1129.24535294,0.000318,3]
[313394176,1707279037985,-8185.98589242,0.000318,3]
[313394177,1707279038212,-4723.37346589,0.000318,3]
[313394178,1707279038388,-12203.2991875,0.000318,3]
[313394179,1707279038398,-11068.8241611,0.00031994,3]
[313394180,1707279038408,-3148.18418796,0.00032004,4]
[313394181,1707279038417,-257.33,0.00032279,2]
[313394182,1707279038426,-640.0,0.00032303,2]
[313394183,1707279038435,-3202.7522745,0.0003234,2]
[313394184,1707279038444,-159.93,0.00032403,2]
[313394185,1707279038453,-191.83,0.00032436,120]
[313394186,1707279038462,-580.44892111,0.00032468,6]
[313394187,1707279038471,-158.3306238,0.0003279,2]
[313394188,1707279038480,-66.84109955,0.000329,2]
[313394189,1707279038492,-433.15890045,0.000329,2]
[313394190,1707279038503,-296.04541542,0.000334,2]
[313394191,1707279038515,-397.51590355,0.000334,2]
[313394192,1707279038526,-176.67995718,0.000334,13]
[313394193,1707279038537,-167.08137882,0.0003349,5]
[313394194,1707279038549,-420.8888349,0.0003349,5]
[313394195,1707279038561,-313.89851893,0.0003349,5]
[313394196,1707279038572,-5068.30342588,0.0003349,5]
[313394197,1707279038583,-516.4589546,0.0003349,5]
[313394198,1707279038598,-262.08850084,0.0003349,5]
[313394199,1707279038610,-473.3383626,0.0003349,5]
[313394258,1707279041440,-14322.85162685,0.0003349,5]
[313394262,1707279043268,-428.32,0.0003349,5]
[313394263,1707279043283,-164.41871888,0.0003349,5]
[313394264,1707279043295,-5499.17629663,0.000335,2]
[313394273,1707279046218,-572.95084273,0.000335,2]
[313394274,1707279046324,-687.50017416,0.000335,2]
[313394285,1707280152104,-350.0,0.00025,3]
[313394286,1707280152125,-158.03413309,0.0002537,2]
[313394287,1707280152145,-209.0,0.0002547,2]
[313394288,1707280152164,-400.0,0.00027,3]
[313394289,1707280152185,-158.03413307,0.00027753,2]
[313394290,1707280152204,-450.0,0.00029,3]
[313394291,1707280152223,-155.0,0.0003,2]
[313394292,1707280152244,-158.03413307,0.00030135,2]
[313394293,1707280152264,-231.25381829,0.00030401,2]
[313394294,1707280153111,-36.12618171,0.00030401,2]
[313394295,1707280153131,-150.0,0.00030553,2]
[313394296,1707280153151,-168.46,0.00030677,2]
[313394297,1707280153171,-363.08478426,0.00030777,4]
[313394298,1707280153192,-1000.0,0.00030779,7]
[313394299,1707280153214,-856.58808217,0.00030779,6]
[313394300,1707280153235,-1000.0,0.00030779,7]
[313394301,1707280153256,-1000.0,0.00030779,7]
[313394302,1707280153277,-1000.0,0.00030779,7]
[313394303,1707280153298,-1000.0,0.00030779,7]
[313394304,1707280153318,-2646.11819573,0.00030779,6]
[313394305,1707280153339,-1000.0,0.00030779,7]
[313394306,1707280153359,-1000.0,0.00030779,7]
[313394307,1707280153380,-4940.50949586,0.00030779,5]
[313394308,1707280153405,-1000.0,0.00030779,7]
[313394309,1707280153432,-1574.13659764,0.00030779,5]
[313394310,1707280153453,-1000.0,0.00030779,7]
[313394311,1707280153474,-1000.0,0.00030779,7]
[313394312,1707280153494,-719.668214,0.00030779,5]
[313394313,1707280153513,-347.33,0.00030779,2]
[313394314,1707280153533,-1000.0,0.00030779,7]
[313394315,1707280153553,-912.35011853,0.00030779,5]
[313394316,1707280153573,-1000.0,0.00030779,7]
[313394317,1707280153593,-590.44113424,0.00030873,2]
[313394318,1707280158076,-5759.2664,0.00030873,2]
[313394323,1707280234480,-2733.4795,0.000249,14]
[313394324,1707280234491,-254.01,0.00030006,2]
[313394325,1707280234500,-3650.29246576,0.00030873,2]
[313394326,1707280234510,-500.0,0.00030873,2]
[313394327,1707280234519,-500.0,0.00030873,2]
[313394328,1707280234529,-500.0,0.00030873,2]
[313394329,1707280234538,-1972.26398531,0.00030873,2]
[313394330,1707280234548,-500.0,0.00030873,2]
[313394331,1707280234558,-200.0,0.00030873,2]
[313394332,1707280234568,-500.0,0.00031,3]
[313394333,1707280234578,-272.12,0.0003106,2]
[313394334,1707280234587,-155.0,0.00031204,2]
[313394335,1707280234597,-250.0,0.00031205,2]
[313394336,1707280234607,-209.0,0.00031225,11]
[313394337,1707280234617,-288.0,0.00031317,2]
[313394338,1707280234629,-1500.0,0.00031412,7]
[313394339,1707280234642,-250.0,0.00031476,2]
[313394340,1707280234651,-577.87,0.00031624,2]
[313394341,1707280234661,-404.55,0.00031956,2]
[313394342,1707280234670,-1000.0,0.0003197,2]
[313394343,1707280234681,-254.01,0.0003227,2]
[313394344,1707280234690,-168.46,0.00032275,2]
[313394345,1707280234699,-712.0,0.00032351,2]
[313394346,1707280234708,-158.03413307,0.00032518,2]
[313394347,1707280234719,-500.0,0.000329,2]
[313394348,1707280234728,-550.0,0.00033,3]
[313394349,1707280234737,-4000.0,0.00033,2]
[313394350,1707280234746,-45284.25874578,0.00033196,2]
[313394351,1707280234758,-907.0,0.00033196,2]
[313394353,1707280234770,-2958.13277643,0.00033196,2]
[313394355,1707280234783,-89643.52560633,0.00033196,2]
[313394384,1707280239991,-1000.0,0.00030779,7]
[313394385,1707280240001,-1686.36413778,0.00033196,2]
[313394416,1707280240853,-1028.77881424,0.00033196,2]
[313394417,1707280240979,-33014.6029976,0.00033196,2]
[313394418,1707280240988,-6492.1553,0.00033197,2]
[313394419,1707280240998,-230.4933,0.00033298,2]
[313394420,1707280241007,-608.30465967,0.00033298,6]
[313394421,1707280241016,-646.47648549,0.00033388,2]
[313394422,1707280241025,-887.77508681,0.00033389,5]
[313394455,1707280243418,-22027.47865391,0.00033389,5]
[313394456,1707280243432,-2943.35717574,0.00033389,5]
[313394457,1707280243446,-5975.60249788,0.00033389,5]
[313394458,1707280243458,-1893.28616819,0.00033389,5]
[313394459,1707280243481,-1023.52,0.00033389,5]
[313394468,1707281346095,-350.0,0.00025,3]
[313394469,1707281346114,-1971.0,0.000268,2]
[313394470,1707281346133,-6632.0,0.000268,2]
[313394471,1707281346156,-400.0,0.00027,3]
[313394472,1707281346175,-450.0,0.00029,3]
[313394473,1707281346195,-44.6280416,0.00029422,2]
[313394474,1707281347230,-152.61858208,0.00029422,2]
[313394475,1707281372125,-45.58337632,0.00029422,2]
[313394476,1707281372147,-155.0,0.0003,2]
[313394477,1707281372173,-173.49295211,0.00030779,5]
[313394478,1707281372194,-1000.0,0.00030779,7]
[313394479,1707281372214,-370.74419166,0.00030779,5]
[313394480,1707281372234,-1000.0,0.00030779,7]
[313394481,1707281372254,-399.68430548,0.00030779,5]
[313394482,1707281372274,-215.91454853,0.00030779,5]
[313394483,1707281372295,-416.96421677,0.00030779,5]
[313394484,1707281372315,-213.15120622,0.00030779,5]
[313394485,1707281372336,-1067.98746087,0.00030779,5]
[313394486,1707281372357,-742.35519937,0.00030779,5]
[313394487,1707281372377,-410.55755334,0.00030779,5]
[313394488,1707281372397,-511.14116011,0.00030873,4]
[313394489,1707281372416,-804.27936414,0.00030873,4]
[313394490,1707281372436,-144.22139215,0.00030873,2]
[313394509,1707281432284,-225.80665434,0.00030779,5]
[313394510,1707281432293,-355.76860785,0.00030873,2]
[313394511,1707281432302,-372.43207321,0.00031,3]
[313394512,1707281432444,-127.56792679,0.00031,3]
[313394513,1707281432454,-1180.35696533,0.00031,7]
[313394514,1707281432466,-453.1866726,0.00031,7]
[313394515,1707281432475,-3.13023513,0.00031081,2]
[313394516,1707281432557,-246.86976487,0.00031081,2]
[313394517,1707281432566,-51.81706322,0.00031112,2]
[313394518,1707281432578,-198.18293678,0.00031112,2]
[313394519,1707281432587,-546.72083137,0.00031383,2]
[313394545,1707281438648,-222.87916863,0.00031383,2]
[313394546,1707281438659,-193.27,0.00031402,2]
[313394547,1707281438669,-242.83,0.00031686,2]
[313394548,1707281438679,-487.21,0.00031732,2]
[313394549,1707281438689,-14912.0,0.0003175,2]
[313394550,1707281438698,-230.4,0.00031949,2]
[313394551,1707281438708,-2828.72344312,0.00032,2]
[313394556,1707281440938,-500.0,0.00030873,2]
[313394557,1707281440948,-1171.27655688,0.00032,2]
[313394558,1707281440957,-150.0,0.00032049,2]
[313394559,1707281440966,-702.32298089,0.0003205,2]
[313394560,1707281440976,-1001.0,0.00032057,2]
[313394561,1707281440985,-238.849,0.00032057,2]
[313394562,1707281440999,-424.361,0.00032057,2]
[313394563,1707281441011,-320.0,0.00032057,2]
[313394564,1707281441020,-859.0,0.00032057,2]
[313394565,1707281441030,-537.79,0.00032057,2]
[313394566,1707281441038,-158.266,0.00032057,2]
[313394567,1707281441048,-13044.649,0.00032057,2]
[313394568,1707281441057,-1344.326,0.00032057,2]
[313394569,1707281441067,-2581.549,0.00032057,2]
[313394570,1707281441077,-943.881,0.00032057,2]
[313394571,1707281441086,-507.98,0.00032101,2]
[313394572,1707281441096,-165.19,0.00032206,2]
[313394573,1707281441106,-500.0,0.000329,2]
[313394574,1707281441115,-210.0,0.0003298,2]
[313394575,1707281441124,-550.0,0.00033,3]
[313394576,1707281441133,-695.20234963,0.00033276,6]
[313394577,1707281441142,-155.0,0.00033285,2]
[313394578,1707281441152,-16737.03501941,0.00033286,2]
[313394579,1707281441164,-1768.55826938,0.00033286,2]
[313394580,1707281441177,-312.52609998,0.00033286,2]
[313394581,1707281441189,-475.62850207,0.00033286,2]
[313394582,1707281441201,-642.995,0.00033286,2]
[313394583,1707281441219,-1048.88352159,0.00033286,2]
[313394584,1707281441230,-757.69748552,0.00033286,2]
[313394585,1707281441241,-974.07283775,0.00033286,2]
[313394586,1707281441271,-825.25957984,0.00033286,2]
[313394587,1707281441282,-6119.44966833,0.00033286,2]
[313394589,1707281443343,-150.0,0.00032989,2]
[313394590,1707281443352,-245.44201783,0.00033145,2]
[313394591,1707281443362,-275.20499752,0.00033286,2]
[313394592,1707281443453,-6079.58438075,0.00033286,2]
[313394593,1707281443562,-935.399985,0.00033286,2]
[313394594,1707281443574,-1352.99793441,0.00033286,2]
[313394595,1707281443670,-1547.60961644,0.00033286,2]
[313394596,1707281443682,-2499.40594227,0.00033286,2]
[313394607,1707281446492,-162.25097554,0.00029956,2]
[313394608,1707281446503,-312.18260849,0.00030873,2]
[313394609,1707281446611,-187.81739151,0.00030873,2]
[313394610,1707281446621,-8887.39020348,0.00033286,2]
[313394611,1707281446653,-50787.10886198,0.00033286,2]
[313394619,1707281700653,-152.52,0.000235,2]
[313394621,1707282311149,-800.0,0.00023311,2]
[313394622,1707282311182,-400.0,0.00023312,2]
[313394623,1707282513464,-400.0,0.00023312,2]
[313394624,1707282513485,-800.0,0.00023312,2]
[313394625,1707282546111,-174.204573,0.00029465,2]
[313394626,1707282546133,-262.98,0.00029614,2]
[313394627,1707282546155,-603.046727,0.00029931,2]
[313394628,1707282552100,-132.713273,0.00029931,2]
[313394629,1707282552122,-189.481627,0.0002998,2]
[313394630,1707282555108,-20.518373,0.0002998,2]
[313394631,1707282555128,-155.0,0.00030578,2]
[313394632,1707282555149,-157.70463683,0.00030579,2]
[313394633,1707282555168,-1384.3817,0.00030679,2]
[313394634,1707282555190,-1000.0,0.00030779,7]
[313394635,1707282555210,-1000.0,0.00030779,7]
[313394636,1707282555231,-258.51161668,0.00030779,6]
[313394637,1707282555252,-399.4666341,0.00030779,6]
[313394638,1707282555272,-609.85332438,0.00030779,6]
[313394639,1707282555293,-648.79057654,0.00030779,6]
[313394640,1707282555313,-678.41740855,0.00030779,6]
[313394641,1707282555336,-287.36309502,0.00030779,6]
[313394642,1707282555357,-252.04591341,0.00030779,7]
[313394644,1707282631523,-249.83,0.00029693,2]
[313394646,1707282631534,-747.95408659,0.00030779,7]
[313394648,1707282631543,-319.23833951,0.00030779,6]
[313394650,1707282631554,-109.70853607,0.00030779,6]
[313394653,1707282631697,-357.27369558,0.00030779,6]
[313394654,1707282631710,-33.01776835,0.00030779,6]
[313394655,1707282631719,-444.5172316,0.00030779,7]